fUSD/lending_fUSD_20241123
["ID","MTS","AMOUNT","RATE_DAILY","PERIOD"]
[343175041,1732395105891,-151.0,0.00055989,120]
[343175042,1732395105901,-151.0,0.00055989,120]
[343175043,1732395105910,-1029.183445,0.00055989,120]
[343175044,1732395105920,-1029.183445,0.00055989,120]
[343175045,1732395105931,-478.470974,0.00055989,120]
[343175046,1732395105941,-478.470974,0.00055989,120]
[343175047,1732395105951,-669.909396,0.00055989,120]
[343175048,1732395105961,-669.909396,0.00055989,120]
[343175049,1732395105972,-538.766025,0.00055989,120]
[343175050,1732395105981,-538.766025,0.00055989,120]
[343175051,1732395105991,-221.331552,0.00055989,120]
[343175052,1732395106001,-221.331552,0.00055989,120]
[343175053,1732395106011,-151.0,0.00055989,120]
[343175054,1732395106023,-919.83258,0.00055989,120]
[343175055,1732395106037,-919.83258,0.00055989,120]
[343175056,1732395106048,-151.0,0.00055989,120]
[343175057,1732395106057,-530.545643,0.00055989,120]
[343175058,1732395106067,-530.545643,0.00055989,120]
[343175059,1732395106076,-570.950524,0.00055989,120]
[343175060,1732395106087,-570.950524,0.00055989,120]
[343175061,1732395106097,-151.0,0.00055989,120]
[343175062,1732395106111,-537.267678,0.00055989,120]
[343175063,1732395106123,-490.770806,0.00055989,120]
[343175064,1732395106142,-490.770806,0.00055989,120]
[343175065,1732395106151,-537.267678,0.00055989,120]
[343175066,1732395106161,-151.0,0.00055989,120]
[343175067,1732395106171,-170.401115,0.00055989,120]
[343175068,1732395106181,-170.401111,0.00055989,120]
[343175069,1732395106193,-1062.144286,0.00055989,120]
[343175070,1732395106203,-1062.144289,0.00055989,120]
[343175071,1732395106215,-390.120924,0.00055989,120]
[343175072,1732395106229,-390.120928,0.00055989,120]
[343175073,1732395106242,-297.157744,0.00055989,120]
[343175074,1732395106252,-216.55713,0.00055989,120]
[343175075,1732395106261,-297.157742,0.00055989,120]
[343175076,1732395106271,-216.55713,0.00055989,120]
[343175077,1732395106280,-27467.23474371,0.00055989,30]
[343175078,1732395106290,-883.58216186,0.00055989,30]
[343175079,1732395106299,-1000.0,0.0005599,120]
[343175080,1732395106309,-51442503.23020977,0.0005599,60]
[343175081,1732395106916,-2040.98194149,0.0005599,60]
[343175082,1732395107597,-500.0,0.00054794,120]
[343175083,1732395107610,-50.8798664,0.00054794,120]
[343175084,1732395107622,-251.4619992,0.00054794,120]
[343175085,1732395107634,-197.6581344,0.00054794,120]
[343175086,1732395107644,-86046.92092653,0.0005599,60]
[343175087,1732395107672,-500.0,0.00054794,120]
[343175088,1732395107682,-38276.04979189,0.0005599,60]
[343175089,1732395107693,-8355.461751,0.0005599,60]
[343175090,1732395107708,-500.0,0.00054794,120]
[343175091,1732395107718,-16574.23742857,0.0005599,60]
[343175092,1732395107816,-500.0,0.00045589,10]
[343175093,1732395107826,-500.0,0.00054794,120]
[343175094,1732395107836,-57.20067978,0.00054794,120]
[343175095,1732395107849,-442.79932022,0.00054794,120]
[343175096,1732395107861,-500.0,0.00054794,120]
[343175097,1732395107870,-500.0,0.00054794,120]
[343175098,1732395107881,-361.0,0.00054794,120]
[343175099,1732395107895,-500.0,0.00054794,120]
[343175100,1732395107905,-500.0,0.00054794,120]
[343175101,1732395107915,-500.0,0.00055099,120]
[343175102,1732395107925,-500.0,0.00055399,120]
[343175103,1732395107935,-500.0,0.00055758,120]
[343175104,1732395107945,-500.0,0.00055834,120]
[343175105,1732395107954,-40317.38692091,0.0005599,60]
[343175106,1732395107967,-603.14507178,0.0005599,60]
[343175107,1732395107978,-950.94605524,0.0005599,60]
[343175108,1732395107993,-500.0,0.00055835,120]
[343175109,1732395108002,-4301.9105735,0.0005599,60]
[343175110,1732395108019,-500.0,0.00055868,120]
[343175111,1732395108028,-962.935,0.0005599,60]
[343175112,1732395108039,-2008.96,0.0005599,60]
[343175113,1732395108050,-728.80101,0.0005599,60]
[343175114,1732395108274,-500.0,0.00054794,120]
[343175115,1732395108283,-475.16,0.00054794,120]
[343175116,1732395108448,-24.84,0.00054794,120]
[343175117,1732395108458,-500.0,0.00054794,120]
[343175118,1732395108467,-500.0,0.00054794,120]
[343175119,1732395108477,-500.0,0.00054794,120]
[343175120,1732395108486,-500.0,0.00054794,120]
[343175121,1732395108496,-500.0,0.00054794,120]
[343175122,1732395108505,-407.03754761,0.00054794,120]
[343175123,1732395108515,-500.0,0.00054794,120]
[343175124,1732395108524,-500.0,0.00054794,120]
[343175125,1732395108534,-500.0,0.00054794,120]
[343175126,1732395108543,-509.86239755,0.00054794,120]
[343175127,1732395108553,-13523.46091734,0.00055199,2]
[343175128,1732395108562,-500.0,0.00055868,120]
[343175129,1732395108572,-500.0,0.00055869,120]
[343175130,1732395108581,-500.0,0.00055869,120]
[343175131,1732395108591,-461.36,0.00055869,120]
[343175132,1732395108601,-500.0,0.00055869,120]
[343175133,1732395108613,-500.0,0.00055869,120]
[343175134,1732395108623,-500.0,0.00055869,120]
[343175135,1732395108633,-500.0,0.00055869,120]
[343175136,1732395108643,-500.0,0.00055883,120]
[343175137,1732395108654,-199.66808634,0.0005589,11]
[343175138,1732395108664,-500.0,0.00055906,120]
[343175139,1732395108675,-537.51,0.00055969,120]
[343175140,1732395108685,-75723.3336304,0.0005599,60]
[343175141,1732395108701,-6501.28850117,0.0005599,60]
[343175142,1732395108712,-2202.40600605,0.0005599,60]
[343175143,1732395108767,-680204.16817567,0.0005599,60]
[343175144,1732395109059,-150.0,0.00054508,120]
[343175145,1732395109068,-282.84277724,0.000547,19]
[343175146,1732395109080,-617.15722276,0.000547,19]
[343175147,1732395109090,-500.0,0.00054794,2]
[343175148,1732395109099,-380.83476054,0.00054794,2]
[343175149,1732395109113,-119.16523946,0.00054794,2]
[343175150,1732395109123,-500.0,0.00054794,2]
[343175151,1732395109133,-281.34225462,0.00054794,2]
[343175152,1732395109145,-218.65774538,0.00054794,2]
[343175153,1732395109155,-500.0,0.00054794,120]
[343175154,1732395109166,-500.0,0.00054794,2]
[343175155,1732395109176,-500.0,0.00054794,120]
[343175156,1732395109185,-500.0,0.00054794,120]
[343175157,1732395109195,-219.03725462,0.00054794,120]
[343175158,1732395109214,-271.0,0.00054794,7]
[343175159,1732395109223,-93.73046953,0.00054794,120]
[343175160,1732395109270,-11.09287176,0.00054794,120]
[343175161,1732395109279,-577.47064793,0.00054794,2]
[343175162,1732395109288,-500.0,0.00054794,120]
[343175163,1732395109298,-613.86,0.00054794,120]
[343175164,1732395109308,-500.0,0.00055399,120]
[343175165,1732395109318,-459.69534654,0.00055979,120]
[343175166,1732395109327,-106795.20921122,0.0005599,60]
[343175167,1732395109338,-1134.47299596,0.0005599,60]
[343175168,1732395109446,-71128.96847888,0.0005599,60]
[343175169,1732395109483,-423.35991,0.00055545,2]
[343175170,1732395110937,718.74667842,1e-06,2]
[343175171,1732395227274,150.0,0.00024932,2]
[343175172,1732395227296,150.0,0.00024932,2]
[343175173,1732395227316,150.0,0.00024932,2]
[343175174,1732395227337,50.0,0.00024932,2]
[343175175,1732395241320,150.0,1e-05,120]
[343175176,1732395241342,50.0,1e-05,120]
[343175177,1732395264893,150.0,0.00031764,2]
[343175178,1732395264915,43.4,0.00031764,2]
[343175183,1732395823615,150.0,0.00024932,2]
[343175184,1732395823635,163.89,0.00024932,2]
[343175185,1732395823659,150.0,0.00024932,2]
[343175186,1732395823683,36.11,0.00024932,2]
[343175188,1732395973390,193.4,0.00027605,2]
[343175202,1732396232321,-488.265,0.00034,30]
[343175203,1732396232333,-8134.32144679,0.00034,30]
[343175204,1732396232380,-499.39835019,0.00034,30]
[343175205,1732396232391,-378.25609224,0.00034,30]
[343175206,1732396232492,-479.87529719,0.00034,30]
[343175207,1732396232502,-141.89617213,0.00040995,2]
[343175208,1732396232514,-1069.00829095,0.00040995,2]
[343175209,1732396232523,-30.96414749,0.00041095,60]
[343175210,1732396232535,-178.85807084,0.00041095,60]
[343175211,1732396232545,-152.65,0.00041096,2]
[343175212,1732396232555,-151.92,0.00041096,2]
[343175213,1732396232564,-254.1,0.00041096,2]
[343175214,1732396232574,-213.92369867,0.000416,2]
[343175215,1732396232584,-796.94,0.00046062,2]
[343175216,1732396232594,-254.1,0.00046143,2]
[343175217,1732396232604,-318.77,0.00046814,7]
[343175218,1732396232614,-177.36,0.00047765,7]
[343175219,1732396232623,-177.36,0.00047765,7]
[343175220,1732396232633,-200.0,0.00047962,2]
[343175221,1732396232643,-775.41,0.00047969,2]
[343175222,1732396232652,-248.0,0.00048004,2]
[343175223,1732396232662,-500.0,0.00048018,2]
[343175224,1732396232671,-12018.67276782,0.00048071,2]
[343175225,1732396232693,-3868.38334187,0.00048071,2]
[343175226,1732396232705,-8012.94389031,0.00048071,2]
[343175227,1732396232714,-166.8,0.00048149,2]
[343175228,1732396232725,-1585.19517753,0.0004822,2]
[343175229,1732396232737,-2607.40035391,0.0004822,2]
[343175239,1732396238305,-1187.17446856,0.0004822,2]
[343175240,1732396238344,-1281.36,0.00048285,2]
[343175241,1732396238354,-304.83913144,0.00048326,2]
[343175242,1732396238369,-500.0,0.00048018,2]
[343175243,1732396238378,-231.79,0.00048326,2]
[343175244,1732396240298,-260.31086856,0.00048326,2]
[343175245,1732396240307,-250.0,0.00048356,120]
[343175246,1732396240316,-229.87,0.00048376,7]
[343175247,1732396240329,-1445.11688391,0.00048376,7]
[343175248,1732396240341,-1022.17804769,0.00048376,7]
[343175249,1732396240353,-197.8650684,0.00048376,7]
[343175250,1732396240362,-439.26993153,0.0004842,2]
[343175251,1732396240373,-2233.72266817,0.0004842,2]
[343175252,1732396240416,-1777.7574003,0.0004842,2]
[343175253,1732396240425,-592.01,0.0004842,2]
[343175254,1732396240435,-195.49,0.00048446,2]
[343175255,1732396240444,-1359.94,0.00048446,2]
[343175256,1732396240453,-764.03,0.00048446,45]
[343175257,1732396240462,-475.12,0.00048446,30]
[343175258,1732396240471,-5364.34,0.00048446,2]
[343175259,1732396240481,-897.05,0.0004848,120]
[343175260,1732396240491,-1100.24,0.0004848,5]
[343175261,1732396240500,-786.27382705,0.0004858,120]
[343175262,1732396240509,-1000.0,0.00048581,2]
[343175263,1732396240519,-250.0,0.00048603,120]
[343175264,1732396240528,-285.46,0.00048665,120]
[343175265,1732396240537,-250.0,0.00048676,120]
[343175266,1732396240547,-200.0,0.00048757,2]
[343175267,1732396240555,-150.41,0.00048787,2]
[343175268,1732396240565,-150.0,0.00048795,2]
[343175269,1732396240574,-3342.72,0.00048971,2]
[343175270,1732396240583,-231.28,0.00049076,7]
[343175271,1732396240593,-152.65,0.00049087,2]
[343175272,1732396240603,-150.0,0.00049151,2]
[343175273,1732396240613,-1243.72,0.00049178,2]
[343175274,1732396240622,-443.65,0.000496,120]
[343175275,1732396240632,-1564.962,0.00049798,87]
[343175276,1732396240642,-173.251,0.00049798,87]
[343175277,1732396240651,-2500.0,0.00049799,4]
[343175278,1732396240660,-2500.0,0.00049799,4]
[343175279,1732396240669,-6105.3847,0.00049799,2]
[343175280,1732396240678,-263.8556,0.00049799,2]
[343175281,1732396240687,-5471.4703,0.00049799,2]
[343175282,1732396240696,-2500.0,0.00049799,2]
[343175284,1732396240705,-414.59403228,0.00049799,28]
[343175286,1732396240714,-2288.13873938,0.00049799,15]
[343175289,1732396240738,-500.0,0.00048285,2]
[343175291,1732396240747,-134.17825975,0.00048326,2]
[343175468,1732396243419,-500.0,0.00048446,2]
[343175469,1732396243429,-642.35790048,0.00049799,15]
[343175470,1732396243439,-7063.22543529,0.00049799,15]
[343175471,1732396243448,-2141.67274913,0.00049799,15]
[343175472,1732396243457,-800.0,0.000498,18]
[343175473,1732396243465,-236.9591102,0.00049898,120]
[343175474,1732396243474,-217.20217857,0.00049898,120]
[343175496,1732396246335,-282.79782143,0.00049898,120]
[343175497,1732396246344,-57.76239857,0.00049898,120]
[343175498,1732396246450,-500.0,0.00048665,120]
[343175499,1732396246460,-442.23760143,0.00049898,120]
[343175500,1732396246470,-596.76230953,0.00049898,120]
[343175501,1732396246479,-426.39014365,0.00049898,120]
[343175502,1732396246491,-500.0,0.00049898,31]
[343175503,1732396246501,-500.0,0.00049898,31]
[343175504,1732396246511,-500.0,0.00049898,31]
[343175505,1732396246521,-500.0,0.00049898,31]
[343175506,1732396246530,-500.0,0.00049898,31]
[343175507,1732396246540,-500.0,0.00049898,31]
[343175508,1732396246549,-500.0,0.00049898,31]
[343175509,1732396246559,-500.0,0.00049898,31]
[343175510,1732396246568,-500.0,0.00049898,31]
[343175511,1732396246578,-500.0,0.00049898,31]
[343175512,1732396246587,-307.80902416,0.00049898,31]
[343175513,1732396246597,-500.0,0.00049898,31]
[343175514,1732396246607,-500.0,0.00049898,31]
[343175515,1732396246616,-633.918138,0.00049898,31]
[343175516,1732396246626,-500.0,0.00049898,31]
[343175517,1732396246635,-500.0,0.00049898,31]
[343175518,1732396246645,-500.0,0.00049898,31]
[343175519,1732396246655,-500.0,0.00049898,31]
[343175520,1732396246665,-500.0,0.00049898,31]
[343175521,1732396246675,-500.0,0.00049899,2]
[343175522,1732396246685,-13724.10496323,0.00049899,2]
[343175526,1732396393475,150.0,0.00031,2]
[343175527,1732396393497,100.0,0.00031,2]
[343175529,1732396394558,50.0,0.00033,2]
[343175530,1732396394579,150.0,0.00033,2]
[343175531,1732396394601,100.0,0.00033,2]
[343175532,1732396396460,50.0,0.00033385,2]
[343175533,1732396396482,141.0005,0.00033385,2]
[343175539,1732396420912,-200.0,0.00035,2]
[343175540,1732396427756,150.0,0.00024932,2]
[343175541,1732396427777,150.0,0.00024932,2]
[343175542,1732396427798,150.0,0.00024932,2]
[343175543,1732396427818,50.0,0.00024932,2]
[343175544,1732396448934,-150.0,0.00035,2]
[343175545,1732396510418,50.0,0.00035,120]
[343175546,1732396691768,150.0,0.00027931,2]
[343175547,1732396691790,43.4,0.00027931,2]
[343175549,1732397026512,150.0,0.00024932,2]
[343175550,1732397026535,150.0,0.00024932,2]
[343175551,1732397026556,150.0,0.00024932,2]
[343175552,1732397026580,50.0,0.00024932,2]
[343175553,1732397108769,14800.08320163,0.0001,2]
[343175554,1732397126289,150.0,0.000108,2]
[343175555,1732397126312,150.0,0.000108,2]
[343175556,1732397126333,78.35376158,0.000108,2]
[343175557,1732397152291,150.0,9.99e-05,2]
[343175558,1732397152314,150.0,9.99e-05,2]
[343175559,1732397152336,150.0,9.99e-05,2]
[343175560,1732397152356,150.0,9.99e-05,2]
[343175561,1732397152377,150.0,9.99e-05,2]
[343175562,1732397152398,150.0,9.99e-05,2]
[343175563,1732397152422,9100.0,9.99e-05,2]
[343175576,1732397169852,150.0,0.000199,3]
[343175577,1732397170036,150.0,0.000199,3]
[343175578,1732397170073,160.78704158,0.000199,3]
[343175579,1732397170097,439.21295842,0.000199,3]
[343175580,1732397237849,150.0,0.0002402,2]
[343175581,1732397237869,150.0,0.0002402,2]
[343175582,1732397237889,150.0,0.0002402,2]
[343175583,1732397237910,150.0,0.0002402,2]
[343175584,1732397237931,150.0,0.0002402,2]
[343175585,1732397237952,26.79580087,0.0002402,2]
[343175586,1732397253913,150.0,0.00024,30]
[343175587,1732397253938,39.21480558,0.00024,30]
[343175588,1732397256512,110.78519442,0.00018,2]
[343175589,1732397256532,150.0,0.00018,2]
[343175590,1732397256555,67.81661662,0.00018,2]
[343175591,1732397280865,21934.96018062,0.000145,3]
[343175592,1732397280925,14263.51115301,0.000145,3]
[343175593,1732397283030,7937047.63073625,0.00013,2]
[343175596,1732397321777,11686.78279945,0.00032,90]
[343175606,1732397323826,1021.07516134,0.0003,30]
[343175608,1732397326555,150.0,0.00025,2]
[343175629,1732397389403,150.0,0.000268,2]
[343175630,1732397389425,150.0,0.000268,2]
[343175631,1732397389446,150.0,0.000268,2]
[343175632,1732397389468,150.0,0.000268,2]
[343175633,1732397389523,980.0,0.000268,2]
[343175634,1732397391169,150.0,0.00033004,2]
[343175648,1732397431488,-905.14092767,0.000351,30]
[343175649,1732397431498,-338.15098012,0.000351,7]
[343175650,1732397431509,-400.0,0.00037,2]
[343175651,1732397431519,-169.1,0.00037259,2]
[343175652,1732397431528,-400.0,0.00037472,2]
[343175653,1732397431538,-3689.47292727,0.00037473,3]
[343175654,1732397431557,-7410.40931439,0.00037473,3]
[343175655,1732397431566,-8925.8556,0.0003878,2]
[343175656,1732397431576,-362.76977828,0.000388,2]
[343175657,1732397431585,-386.66515343,0.000388,2]
[343175658,1732397431597,-1540.84032076,0.000388,2]
[343175659,1732397431609,-1974.7,0.00038877,14]
[343175660,1732397431623,-311.97878046,0.00038879,15]
[343175661,1732397431632,-500.0,0.00038879,15]
[343175662,1732397431641,-237.10201533,0.00038879,15]
[343175663,1732397431651,-12492.9199547,0.0003888,90]
[343175664,1732397431663,-7402.8935802,0.0003888,90]
[343175665,1732397431676,-331264.22955764,0.0003888,90]
[343175666,1732397431685,-8994.34986768,0.000389,2]
[343175667,1732397431698,-450.0,0.00039,2]
[343175668,1732397431709,-2137.09796156,0.00039,14]
[343175669,1732397431718,-29959.68317916,0.0004,30]
[343175670,1732397431727,-8795.3967754,0.0004,2]
[343175671,1732397431737,-7247.05559448,0.0004,10]
[343175672,1732397431746,-278.67769802,0.0004,4]
[343175673,1732397431755,-29866.57322328,0.0004,7]
[343175674,1732397431765,-560.0,0.00040075,5]
[343175675,1732397431775,-1927.50547419,0.00040699,15]
[343175676,1732397431785,-8994.34986761,0.00040788,15]
[343175677,1732397431794,-191.0005,0.00040795,2]
[343175678,1732397431804,-500.0,0.00041,2]
[343175679,1732397431813,-165.4,0.00041096,2]
[343175680,1732397431823,-151.92,0.00041096,2]
[343175681,1732397431832,-362.76977822,0.00041241,28]
[343175682,1732397431840,-14088.08093829,0.00042,30]
[343175683,1732397431848,-150.0,0.00042082,2]
[343175684,1732397431858,-1927.50547419,0.00042598,15]
[343175685,1732397431866,-8994.34986761,0.00042676,15]
[343175686,1732397431875,-783.0,0.0004286,5]
[343175687,1732397431883,-550.0,0.00043,2]
[343175688,1732397431893,-1000.0,0.0004308,2]
[343175689,1732397431903,-362.76977822,0.00043683,28]
[343175690,1732397431912,-150.0,0.00044423,2]
[343175692,1732397431921,-1927.50547419,0.00044497,15]
[343175694,1732397431930,-8994.34986761,0.00044563,15]
[343175695,1732397431940,-600.0,0.00045,2]
[343175696,1732397431949,-14335.29680659,0.00045,2]
[343175697,1732397431959,-1679.51,0.00045136,2]
[343175698,1732397431969,-1097.0,0.00045837,5]
[343175699,1732397431980,-150.0,0.00045872,2]
[343175700,1732397431990,-835.89,0.00046026,2]
[343175701,1732397432001,-362.76977822,0.00046124,28]
[343175702,1732397432010,-1927.50547419,0.00046396,15]
[343175703,1732397432020,-8994.34986761,0.00046451,15]
[343175704,1732397432029,-607.63,0.00046544,120]
[343175705,1732397432039,-250.0,0.00046581,120]
[343175706,1732397432049,-150.38,0.00046695,2]
[343175707,1732397432059,-250.0,0.00046745,120]
[343175708,1732397432069,-1494.77,0.00046805,2]
[343175709,1732397432079,-3501.42,0.00046933,2]
[343175710,1732397432089,-200.0,0.00046973,2]
[343175711,1732397432098,-650.0,0.00047,2]
[343175712,1732397432110,-420.1999971,0.00047,120]
[343175713,1732397432119,-640.68,0.00047358,2]
[343175714,1732397432129,-1251.969,0.00047358,80]
[343175715,1732397432138,-34770.0,0.000475,120]
[343175716,1732397432149,-762283.81047211,0.000476,30]
[343175717,1732397432302,-301.15382848,0.000476,30]
[343175718,1732397432331,-165.87137714,0.00039999,31]
[343175719,1732397432341,-500.0,0.00039999,31]
[343175720,1732397432351,-22825.08971415,0.000476,30]
[343175726,1732397438019,-617.73361667,0.00039999,31]
[343175727,1732397438030,-500.0,0.00043,2]
[343175728,1732397438040,-620.05128899,0.000476,30]
[343175729,1732397438052,-15934.93111469,0.000476,30]
[343175732,1732397439471,-406.24944498,0.000476,30]
[343175733,1732397439537,-13731.11044389,0.000476,30]
[343175734,1732397439598,-4932.992405,0.000476,30]
[343175735,1732397442175,150.0,0.000333,5]
[343175738,1732397442662,-971.36402823,0.00040599,2]
[343175739,1732397442850,-753.64319821,0.00040599,2]
[343175748,1732397445602,-4503.89534481,0.00040599,2]
[343175749,1732397445614,-271253.58780478,0.000476,30]
[343175750,1732397445625,-9377.24843391,0.00047686,2]
[343175751,1732397445835,-1012.33098511,0.00047686,2]
[343175752,1732397445846,-667.28431619,0.00047686,2]
[343175754,1732397643563,800.0,0.00026986,120]
[343175755,1732397762396,200.0,0.00026986,120]
[343175756,1732398038906,150.0,0.00027,120]
[343175757,1732398039220,150.0,0.000323,120]
[343175758,1732398041096,150.0,0.000325,2]
[343175759,1732398041117,72.1715,0.000325,2]
[343175760,1732398227007,150.0,0.00024932,2]
[343175761,1732398227033,150.0,0.00024932,2]
[343175762,1732398227059,150.0,0.00024932,2]
[343175763,1732398227086,50.0,0.00024932,2]
[343175764,1732398233647,150.0,0.00024658,2]
[343175765,1732398233676,50.0,0.00024658,2]
[343175766,1732398261087,250.0,0.00031,2]
[343175767,1732398273245,150.0,0.00033,2]
[343175768,1732398273267,150.0,0.00033,2]
[343175773,1732398522910,150.0,0.00033,2]
[343175774,1732398522932,1.0,0.00033,2]
[343175775,1732398531673,150.0,0.00033,2]
[343175776,1732398531697,1.0,0.00033,2]
[343175777,1732398544407,-150.0,0.00034548,10]
[343175778,1732398544432,-337.30736934,0.00034548,2]
[343175779,1732398544458,-350.0,0.00035,2]
[343175780,1732398544482,-400.0,0.00037,2]
[343175781,1732398544514,-150.0,0.000376,120]
[343175782,1732398544538,-200.0,0.00038,9]
[343175783,1732398544562,-171.59,0.00038,9]
[343175784,1732398544587,-450.0,0.00039,2]
[343175785,1732398544610,-150.0,0.00040082,2]
[343175786,1732398544634,-222.1715,0.00040098,2]
[343175787,1732398544658,-213.0,0.00040999,5]
[343175788,1732398544682,-500.0,0.00041,2]
[343175789,1732398544705,-6637.03,0.00041,2]
[343175790,1732398544728,-154.79,0.00041096,2]
[343175791,1732398544753,-151.92,0.00041096,2]
[343175792,1732398544776,-153.35,0.00041096,2]
[343175793,1732398544798,-164.35455908,0.00041096,2]
[343175794,1732398544820,-150.0,0.0004142,2]
[343175795,1732398544843,-314.8194,0.0004199,2]
[343175796,1732398544864,-207.34004,0.000429,120]
[343175797,1732398544886,-150.0,0.00045589,10]
[343175798,1732398544908,-794.09,0.00045791,2]
[343175799,1732398544929,-150.38,0.00046315,2]
[343175800,1732398544953,-429.83,0.00046571,120]
[343175801,1732398544975,-23900.0,0.00046634,2]
[343175802,1732398545006,-4416.0,0.00046683,117]
[343175803,1732398545030,-182.96,0.00046881,2]
[343175804,1732398545052,-250.0,0.0004699,120]
[343175805,1732398545073,-1301.66793752,0.00047,120]
[343175806,1732398545094,-449.43,0.00047011,2]
[343175807,1732398545115,-162.22,0.00047088,2]
[343175808,1732398545136,-666.36456,0.0004721,36]
[343175809,1732398545159,-666.36457,0.0004721,36]
[343175810,1732398545179,-421.93189668,0.00047301,2]
[343175811,1732398545200,-200.0,0.00047307,2]
[343175812,1732398545222,-666.36457,0.0004737,37]
[343175813,1732398545246,-421.93189668,0.00047429,2]
[343175814,1732398545275,-250.0,0.00047432,120]
[343175815,1732398545296,-1000.0,0.00047527,2]
[343175816,1732398545318,-666.36456,0.0004753,38]
[343175817,1732398545340,-250.0,0.00047654,120]
[343175818,1732398545361,-320.34,0.00047665,2]
[343175819,1732398545382,-1001.575,0.00047665,81]
[343175820,1732398545404,-666.36457,0.0004768,38]
[343175821,1732398545632,-2000.0,0.00047686,7]
[343175822,1732398545655,-200.0,0.00047686,7]
[343175823,1732398545689,-2000.0,0.00047686,7]
[343175824,1732398545715,-200.0,0.00047686,7]
[343175825,1732398545739,-666.36457,0.00047686,38]
[343175826,1732398545765,-500.0,0.00047692,2]
[343175827,1732398545788,-218.48924938,0.000477,120]
[343175828,1732398545813,-271.18,0.00047718,120]
[343175829,1732398545836,-964.6037099,0.000479,120]
[343175830,1732398545861,-197.02,0.00047938,120]
[343175831,1732398545884,-794.09,0.00048055,2]
[343175832,1732398545907,-2000.0,0.00048163,7]
[343175833,1732398545929,-200.0,0.00048163,7]
[343175834,1732398545951,-2000.0,0.00048163,7]
[343175835,1732398545973,-200.0,0.00048163,7]
[343175836,1732398546001,-374.44,0.0004828,2]
[343175837,1732398546024,-165.26,0.00048355,2]
[343175838,1732398546049,-153.35,0.00048472,2]
[343175839,1732398546073,-1199.34629535,0.00048644,7]
[343175840,1732398546097,-200.0,0.00048644,7]
[343175841,1732398546119,-2000.0,0.00048644,7]
[343175842,1732398546141,-200.0,0.00048644,7]
[343175843,1732398546165,-2843.0,0.00048701,30]
[343175844,1732398546187,-1000.0,0.00049,7]
[343175845,1732398546209,-1000.0,0.000491,7]
[343175846,1732398546230,-200.0,0.00049131,7]
[343175847,1732398546256,-2000.0,0.00049131,7]
[343175848,1732398546278,-200.0,0.00049131,7]
[343175849,1732398546304,-421.524,0.0004921,120]
[343175850,1732398546327,-1000.0,0.000493,7]
[343175851,1732398546351,-166.9,0.00049377,2]
[343175852,1732398546374,-5480.77262683,0.0004949,15]
[343175853,1732398546398,-1091.80252324,0.0004949,15]
[343175854,1732398546422,-181.38488911,0.0004959,28]
[343175855,1732398546445,-1000.0,0.0004959,2]
[343175856,1732398546470,-100000.0,0.0004959,2]
[343175857,1732398546492,-1000.0,0.0004959,2]
[343175858,1732398546518,-947.0839,0.0004959,2]
[343175859,1732398546542,-500.0,0.00049673,2]
[343175860,1732398546565,-351.73,0.0004968,30]